fUSD/lending_fUSD_20240729
["ID","MTS","AMOUNT","RATE_DAILY","PERIOD"]
[333601398,1722274244766,-500.0,0.00010958,2]
[333601399,1722274244775,-500.0,0.00010958,2]
[333601400,1722274244785,-578.86198859,0.00010958,2]
[333601401,1722274244793,-500.0,0.00010958,2]
[333601402,1722274244803,-500.0,0.00010958,2]
[333601403,1722274244812,-500.0,0.00010958,2]
[333601404,1722274244821,-500.0,0.00010958,2]
[333601405,1722274244831,-548.98148859,0.00010958,2]
[333601406,1722274244840,-525.73,0.00010958,2]
[333601407,1722274244849,-500.0,0.00010958,2]
[333601408,1722274244858,-500.0,0.00010958,2]
[333601409,1722274244867,-452.84,0.00010958,2]
[333601410,1722274244878,-500.0,0.00010958,2]
[333601411,1722274244887,-544.45283518,0.00010958,2]
[333601412,1722274244900,-591.5705803,0.00010958,2]
[333601413,1722274244909,-500.0,0.00010958,2]
[333601414,1722274244917,-500.0,0.00010958,2]
[333601415,1722274244927,-562.94,0.00010958,2]
[333601416,1722274244939,-500.0,0.00010958,2]
[333601417,1722274244948,-500.0,0.00010958,2]
[333601418,1722274244958,-500.0,0.00010958,2]
[333601419,1722274244967,-213.82824446,0.00010958,2]
[333601420,1722274244977,-500.0,0.00010958,2]
[333601421,1722274244986,-500.0,0.00010958,2]
[333601422,1722274244996,-500.0,0.00010958,2]
[333601423,1722274245005,-500.0,0.00010958,2]
[333601424,1722274245015,-500.0,0.00010958,2]
[333601425,1722274245024,-500.0,0.00010958,2]
[333601426,1722274245033,-500.0,0.00010958,2]
[333601427,1722274245043,-500.0,0.00010958,2]
[333601428,1722274245053,-482.88277521,0.00010958,2]
[333601429,1722274245062,-512.93925164,0.00010958,2]
[333601430,1722274245071,-500.0,0.00010958,2]
[333601431,1722274245081,-502.66274131,0.00010958,2]
[333601432,1722274245090,-532.82,0.00010958,2]
[333601433,1722274245099,-537.4753386,0.00010958,2]
[333601434,1722274245109,-500.0,0.00010958,2]
[333601435,1722274245118,-500.0,0.00010958,2]
[333601436,1722274245127,-500.0,0.00010958,2]
[333601437,1722274245136,-500.0,0.00010958,2]
[333601438,1722274245148,-500.0,0.00010958,2]
[333601439,1722274245157,-500.0,0.00010958,2]
[333601440,1722274245166,-500.0,0.00010958,2]
[333601441,1722274245176,-503.4947683,0.00010958,2]
[333601442,1722274245185,-500.0,0.00010958,2]
[333601443,1722274245194,-500.0,0.00010958,2]
[333601444,1722274245203,-499.25539785,0.00010958,2]
[333601445,1722274245212,-516.44232432,0.00010958,2]
[333601446,1722274245404,-500.0,0.00010958,2]
[333601447,1722274245414,-500.0,0.00010958,2]
[333601448,1722274245424,-299.52,0.00010958,2]
[333601449,1722274245433,-500.0,0.00010958,2]
[333601450,1722274245442,-500.0,0.00010958,2]
[333601451,1722274245451,-500.0,0.00010958,2]
[333601452,1722274245461,-500.0,0.00010958,2]
[333601453,1722274245471,-300.2,0.00010958,2]
[333601454,1722274245480,-500.0,0.00010958,2]
[333601455,1722274245489,-500.0,0.00010958,2]
[333601456,1722274245499,-500.0,0.00010958,2]
[333601457,1722274245508,-500.0,0.00010958,2]
[333601458,1722274245518,-500.0,0.00010958,2]
[333601459,1722274245527,-187.06083973,0.00010958,2]
[333601460,1722274245536,-500.0,0.00010958,2]
[333601461,1722274245546,-500.0,0.00010958,2]
[333601462,1722274245558,-500.0,0.00010958,2]
[333601463,1722274245568,-522.86083322,0.00010958,2]
[333601464,1722274245577,-500.0,0.00010958,2]
[333601465,1722274245587,-500.0,0.00010958,2]
[333601466,1722274245596,-500.0,0.00010958,2]
[333601467,1722274245605,-500.0,0.00010958,2]
[333601468,1722274245615,-334.34,0.00010958,2]
[333601469,1722274245626,-500.0,0.00010958,2]
[333601470,1722274245635,-500.0,0.00010958,2]
[333601471,1722274245646,-500.0,0.00010958,2]
[333601472,1722274245655,-500.0,0.00010958,2]
[333601473,1722274245664,-433.18866683,0.00010958,2]
[333601475,1722274245673,-500.0,0.00010958,2]
[333601476,1722274245682,-500.0,0.00010958,2]
[333601477,1722274245691,-500.0,0.00010958,2]
[333601478,1722274245701,-500.0,0.00010958,2]
[333601479,1722274245710,-527.39491198,0.00010958,2]
[333601480,1722274245719,-500.0,0.00010958,2]
[333601481,1722274245729,-500.0,0.00010958,2]
[333601482,1722274245738,-649.90999999,0.00010958,2]
[333601483,1722274245748,-500.0,0.00010958,2]
[333601484,1722274245757,-500.0,0.00010958,2]
[333601485,1722274245766,-500.0,0.00010958,2]
[333601486,1722274245775,-500.0,0.00010958,2]
[333601487,1722274245784,-377.43,0.00010958,2]
[333601488,1722274245794,-500.0,0.00010958,2]
[333601490,1722274245803,-613.13163496,0.00010958,2]
[333601492,1722274245813,-1307.02,0.00010958,2]
[333601493,1722274245822,-1307.02,0.00010958,2]
[333601494,1722274245831,-1307.02,0.00010958,2]
[333601495,1722274245841,-1307.02,0.00010958,2]
[333601496,1722274245850,-1307.02,0.00010958,2]
[333601498,1722274245860,-1307.02,0.00010958,2]
[333601500,1722274245869,-1307.02,0.00010958,2]
[333601501,1722274245878,-1307.02,0.00010958,2]
[333601503,1722274245887,-1307.02,0.00010958,2]
[333601505,1722274245898,-1307.02,0.00010958,2]
[333601507,1722274245907,-462.34972576,0.00010958,2]
[333601509,1722274245916,-1307.02,0.00010958,2]
[333601510,1722274245926,-1307.02,0.00010958,2]
[333601511,1722274245935,-500.0,0.00010958,2]
[333601512,1722274245945,-500.0,0.00010958,2]
[333601513,1722274245954,-316.09164969,0.00010958,2]
[333601514,1722274245964,-500.0,0.00010958,2]
[333601515,1722274245973,-500.0,0.00010958,2]
[333601516,1722274245982,-500.0,0.00010958,2]
[333601517,1722274245991,-500.0,0.00010958,2]
[333601518,1722274246000,-500.0,0.00010958,2]
[333601519,1722274246009,-621.84,0.00010958,2]
[333601520,1722274246019,-500.0,0.00010958,2]
[333601521,1722274246028,-500.0,0.00010958,2]
[333601522,1722274246038,-500.0,0.00010958,2]
[333601523,1722274246047,-500.0,0.00010958,2]
[333601524,1722274246056,-500.0,0.00010958,2]
[333601525,1722274246065,-500.0,0.00010958,2]
[333601526,1722274246074,-500.0,0.00010958,2]
[333601527,1722274246083,-500.0,0.00010958,2]
[333601528,1722274246093,-448.24,0.00010958,2]
[333601529,1722274246102,-500.0,0.00010958,2]
[333601530,1722274246112,-310.62,0.00010958,2]
[333601531,1722274246121,-537.19,0.00010958,2]
[333601532,1722274246130,-500.0,0.00010958,2]
[333601533,1722274246140,-484.93,0.00010958,2]
[333601534,1722274246150,-500.0,0.00010958,2]
[333601535,1722274246160,-630.17,0.00010958,2]
[333601536,1722274246169,-500.0,0.00010958,2]
[333601537,1722274246179,-638.5,0.00010958,2]
[333601538,1722274246188,-500.0,0.00010958,2]
[333601539,1722274246197,-253.46,0.00010958,2]
[333601540,1722274246206,-546.09423127,0.00010958,2]
[333601541,1722274246215,-500.0,0.00010958,2]
[333601542,1722274246224,-523.11624677,0.00010958,2]
[333601543,1722274246234,-150.0,0.00010958,2]
[333601544,1722274246244,-150.0,0.00010958,2]
[333601545,1722274246253,-500.0,0.00010958,2]
[333601546,1722274246262,-500.0,0.00010958,2]
[333601547,1722274246272,-226.92,0.00010958,2]
[333601548,1722274246281,-554.40678438,0.00010958,2]
[333601549,1722274246290,-500.0,0.00010958,2]
[333601550,1722274246299,-285.5994357,0.00010958,2]
[333601551,1722274246308,-500.0,0.00010958,2]
[333601552,1722274246317,-500.0,0.00010958,2]
[333601553,1722274246326,-500.0,0.00010958,2]
[333601554,1722274246335,-500.0,0.00010958,2]
[333601555,1722274246344,-500.0,0.00010958,2]
[333601556,1722274246353,-500.0,0.00010958,2]
[333601557,1722274246363,-500.0,0.00010958,2]
[333601558,1722274246372,-500.0,0.00010958,2]
[333601559,1722274246381,-297.01276336,0.00010958,2]
[333601560,1722274246390,-613.81,0.00010958,2]
[333601561,1722274246400,-508.51951776,0.00010958,2]
[333601562,1722274246410,-500.0,0.00010958,2]
[333601563,1722274246419,-213.02490206,0.00010958,2]
[333601564,1722274246427,-500.0,0.00010958,2]
[333601565,1722274246437,-500.0,0.00010958,2]
[333601566,1722274246446,-500.0,0.00010958,2]
[333601567,1722274246455,-500.0,0.00010958,2]
[333601568,1722274246465,-500.0,0.00010958,2]
[333601569,1722274246474,-500.0,0.00010958,2]
[333601570,1722274246483,-500.0,0.00010958,2]
[333601571,1722274246492,-507.26319296,0.00010958,2]
[333601572,1722274246501,-313.20934418,0.00010958,2]
[333601573,1722274246726,-186.79065582,0.00010958,2]
[333601574,1722274246736,-276.74502949,0.00010958,2]
[333601575,1722274246745,-500.0,0.00010958,2]
[333601576,1722274246754,-500.0,0.00010958,2]
[333601577,1722274246763,-511.78092505,0.00010958,2]
[333601578,1722274246772,-500.0,0.00010958,2]
[333601579,1722274246781,-500.0,0.00010958,2]
[333601580,1722274246791,-555.49,0.00010958,2]
[333601581,1722274246800,-480.32450184,0.00010958,2]
[333601582,1722274246809,-500.0,0.00010958,2]
[333601583,1722274246819,-195.11339019,0.00010958,2]
[333601584,1722274246828,-500.0,0.00010958,2]
[333601585,1722274246837,-540.93830426,0.00010958,2]
[333601586,1722274246847,-35.10818292,0.00010958,2]
[333601587,1722274246859,-464.89181708,0.00010958,2]
[333601588,1722274246868,-500.0,0.00010958,2]
[333601589,1722274246877,-500.0,0.00010958,2]
[333601590,1722274246886,-58.19936652,0.00010958,2]
[333601591,1722274246899,-441.80063348,0.00010958,2]
[333601592,1722274246908,-320.16813828,0.00010958,2]
[333601593,1722274246917,-500.0,0.00010958,2]
[333601594,1722274246926,-588.63697073,0.00010958,2]
[333601595,1722274246936,-500.0,0.00010958,2]
[333601596,1722274246945,-544.30428154,0.00010958,2]
[333601597,1722274246954,-500.0,0.00010958,2]
[333601598,1722274246964,-500.0,0.00010958,2]
[333601599,1722274246973,-198.83,0.00010958,2]
[333601600,1722274246983,-500.0,0.00010958,2]
[333601601,1722274246992,-500.0,0.00010958,2]
[333601602,1722274247001,-500.0,0.00010958,2]
[333601603,1722274247010,-500.0,0.00010958,2]
[333601604,1722274247019,-500.0,0.00010958,2]
[333601605,1722274247028,-500.0,0.00010958,2]
[333601606,1722274247038,-423.69975197,0.00010958,2]
[333601607,1722274247050,-76.30024803,0.00010958,2]
[333601608,1722274247059,-258.69975197,0.00010958,2]
[333601609,1722274247768,-241.30024803,0.00010958,2]
[333601610,1722274247777,-209.72881427,0.00010958,2]
[333601611,1722274247788,-115.18118573,0.00010958,2]
[333601612,1722274247798,-500.0,0.00010958,2]
[333601613,1722274247807,-130.65285305,0.00010958,2]
[333601614,1722274247818,-369.34714695,0.00010958,2]
[333601615,1722274247827,-120.52606027,0.00010958,2]
[333601616,1722274247843,-315.1724924,0.00010958,2]
[333601617,1722274247854,-64.30144733,0.00010958,2]
[333601618,1722274247863,-311.51983924,0.00010958,2]
[333601619,1722274247874,-188.48016076,0.00010958,2]
[333601620,1722274247883,-142.38771194,0.00010958,2]
[333601621,1722274247896,-335.899365,0.00010958,2]
[333601622,1722274247906,-21.71292306,0.00010958,2]
[333601623,1722274247915,-500.0,0.00010958,2]
[333601624,1722274247926,-500.0,0.00010958,2]
[333601625,1722274247936,-225.33329991,0.00010958,2]
[333601626,1722274247945,-593.42,0.00010958,2]
[333601627,1722274247954,-500.0,0.00010958,2]
[333601628,1722274247963,-500.0,0.00010958,2]
[333601629,1722274247972,-500.0,0.00010958,2]
[333601630,1722274247982,-500.0,0.00010958,2]
[333601631,1722274247992,-500.0,0.00010958,2]
[333601632,1722274248001,-500.0,0.00010958,2]
[333601633,1722274248011,-500.0,0.00010958,2]
[333601634,1722274248020,-416.60516984,0.00010958,2]
[333601635,1722274248030,-500.0,0.00010958,2]
[333601636,1722274248039,-372.50400454,0.00010958,2]
[333601637,1722274248048,-382.38059086,0.00010958,2]
[333601638,1722274248058,-555.80817012,0.00010958,2]
[333601639,1722274248067,-500.0,0.00010958,2]
[333601640,1722274248076,-500.0,0.00010958,2]
[333601641,1722274248087,-500.0,0.00010958,2]
[333601642,1722274248096,-500.0,0.00010958,2]
[333601643,1722274248106,-500.0,0.00010958,2]
[333601644,1722274248115,-500.0,0.00010958,2]
[333601645,1722274248124,-500.0,0.00010958,2]
[333601646,1722274248134,-500.0,0.00010958,2]
[333601647,1722274248147,-500.0,0.00010958,2]
[333601648,1722274248156,-250.16684942,0.00010958,2]
[333601649,1722274248168,-249.83315058,0.00010958,2]
[333601650,1722274248179,-308.41576127,0.00010958,2]
[333601651,1722274248191,-191.58423873,0.00010958,2]
[333601652,1722274248200,-114.09457859,0.00010958,2]
[333601653,1722274248212,-409.04970919,0.00010958,2]
[333601654,1722274248222,-34.20708791,0.00010958,2]
[333601655,1722274248233,-465.79291209,0.00010958,2]
[333601656,1722274248243,-500.0,0.00010958,2]
[333601657,1722274248252,-500.0,0.00010958,2]
[333601658,1722274248261,-500.0,0.00010958,2]
[333601659,1722274248271,-500.0,0.00010958,2]
[333601660,1722274248280,-500.0,0.00010958,2]
[333601661,1722274248289,-40.533488,0.00010958,2]
[333601662,1722274248300,-459.466512,0.00010958,2]
[333601663,1722274248310,-141.400675,0.00010958,2]
[333601664,1722274248334,-358.599325,0.00010958,2]
[333601665,1722274248343,-331.86133044,0.00010958,2]
[333601666,1722274248354,-168.13866956,0.00010958,2]
[333601667,1722274248364,-500.0,0.00010958,2]
[333601668,1722274248373,-500.0,0.00010958,2]
[333601669,1722274248382,-500.0,0.00010958,2]
[333601670,1722274248394,-476.24834485,0.00010958,2]
[333601671,1722274248404,-500.0,0.00010958,2]
[333601672,1722274248413,-500.0,0.00010958,2]
[333601673,1722274248422,-500.0,0.00010958,2]
[333601674,1722274248432,-500.0,0.00010958,2]
[333601675,1722274248441,-500.0,0.00010958,2]
[333601676,1722274248450,-500.0,0.00010958,2]
[333601677,1722274248460,-500.0,0.00010958,2]
[333601678,1722274248469,-500.0,0.00010958,2]
[333601679,1722274248478,-500.0,0.00010958,2]
[333601680,1722274248488,-500.0,0.00010958,2]
[333601681,1722274248497,-651.17,0.00010958,2]
[333601682,1722274248506,-651.17,0.00010958,2]
[333601683,1722274248515,-651.17,0.00010958,2]
[333601684,1722274248524,-651.17,0.00010958,2]
[333601685,1722274248534,-651.17,0.00010958,2]
[333601686,1722274248543,-651.17,0.00010958,2]
[333601687,1722274248556,-651.17,0.00010958,2]
[333601688,1722274248566,-651.17,0.00010958,2]
[333601689,1722274248574,-651.17,0.00010958,2]
[333601690,1722274248584,-651.17,0.00010958,2]
[333601691,1722274248593,-651.17,0.00010958,2]
[333601692,1722274248603,-651.17,0.00010958,2]
[333601693,1722274248612,-500.0,0.00010958,2]
[333601694,1722274248623,-500.0,0.00010958,2]
[333601695,1722274248633,-411.14196797,0.00010958,2]
[333601696,1722274248645,-500.0,0.00010958,2]
[333601697,1722274248654,-500.0,0.00010958,2]
[333601698,1722274248663,-500.0,0.00010958,2]
[333601699,1722274248673,-500.0,0.00010958,2]
[333601700,1722274248681,-500.0,0.00010958,2]
[333601701,1722274248691,-237.01219005,0.00010958,2]
[333601702,1722274248700,-500.0,0.00010958,2]
[333601703,1722274248709,-500.0,0.00010958,2]
[333601704,1722274248719,-500.0,0.00010958,2]
[333601705,1722274248728,-500.0,0.00010958,2]
[333601706,1722274248737,-376.93257069,0.00010958,2]
[333601707,1722274248746,-500.0,0.00010958,2]
[333601708,1722274248756,-500.0,0.00010958,2]
[333601709,1722274248765,-500.0,0.00010958,2]
[333601710,1722274248774,-500.0,0.00010958,2]
[333601711,1722274248783,-310.9873915,0.00010958,2]
[333601712,1722274248792,-500.0,0.00010958,2]
[333601713,1722274248801,-500.0,0.00010958,2]
[333601714,1722274248811,-500.0,0.00010958,2]
[333601715,1722274248820,-500.0,0.00010958,2]
[333601716,1722274248829,-593.62483941,0.00010958,2]
[333601717,1722274248838,-500.0,0.00010958,2]
[333601718,1722274248848,-349.48,0.00010958,2]
[333601719,1722274248857,-500.0,0.00010958,2]
[333601720,1722274248867,-500.0,0.00010958,2]
[333601721,1722274248876,-500.0,0.00010958,2]
[333601722,1722274248885,-500.0,0.00010958,2]
[333601723,1722274248896,-500.0,0.00010958,2]
[333601724,1722274248905,-500.0,0.00010958,2]
[333601725,1722274248914,-500.0,0.00010958,2]
[333601726,1722274248924,-500.0,0.00010958,2]
[333601727,1722274248934,-500.0,0.00010958,2]
[333601728,1722274248944,-497.55211111,0.00010958,2]
[333601729,1722274248953,-500.0,0.00010958,2]
[333601730,1722274248964,-500.0,0.00010958,2]
[333601731,1722274248973,-500.0,0.00010958,2]
[333601732,1722274248983,-500.0,0.00010958,2]
[333601733,1722274248993,-500.0,0.00010958,2]
[333601734,1722274249002,-500.0,0.00010958,2]
[333601735,1722274249012,-500.0,0.00010958,2]
[333601736,1722274249022,-640.84,0.00010958,2]
[333601737,1722274249031,-500.0,0.00010958,2]
[333601738,1722274249041,-594.53,0.00010958,2]
[333601739,1722274249051,-500.0,0.00010958,2]
[333601740,1722274249060,-500.0,0.00010958,2]
[333601741,1722274249070,-500.0,0.00010958,2]
[333601742,1722274249079,-500.0,0.00010958,2]
[333601743,1722274249089,-500.0,0.00010958,2]
[333601744,1722274249099,-500.0,0.00010958,2]
[333601745,1722274249109,-500.0,0.00010958,2]
[333601746,1722274249119,-500.0,0.00010958,2]
[333601747,1722274249129,-500.0,0.00010958,2]
[333601748,1722274249139,-500.0,0.00010958,2]
[333601749,1722274249152,-492.4,0.00010958,2]
[333601750,1722274249162,-502.27,0.00010958,2]
[333601751,1722274249172,-500.0,0.00010958,2]
[333601752,1722274249182,-500.0,0.00010958,2]
[333601753,1722274249192,-502.27,0.00010958,2]
[333601754,1722274249202,-500.0,0.00010958,2]
[333601755,1722274249212,-500.0,0.00010958,2]
[333601756,1722274249221,-502.27,0.00010958,2]
[333601757,1722274249231,-500.0,0.00010958,2]
[333601758,1722274249241,-533.67253485,0.00010958,2]
[333601759,1722274249250,-509.8,0.00010958,2]
[333601760,1722274249260,-500.0,0.00010958,2]
[333601761,1722274249269,-500.0,0.00010958,2]
[333601762,1722274249279,-500.0,0.00010958,2]
[333601763,1722274249288,-357.92634805,0.00010958,2]
[333601764,1722274249303,-142.07365195,0.00010958,2]
[333601765,1722274249312,-500.0,0.00010958,2]
[333601766,1722274249321,-500.0,0.00010958,2]
[333601767,1722274249331,-500.0,0.00010958,2]
[333601768,1722274249340,-500.0,0.00010958,2]
[333601769,1722274249350,-500.0,0.00010958,2]
[333601770,1722274249359,-500.0,0.00010958,2]
[333601771,1722274249368,-122.93695729,0.00010958,2]
[333601772,1722274249384,-377.06304271,0.00010958,2]
[333601773,1722274249394,-83.50669602,0.00010958,2]
[333601774,1722274249405,-416.49330398,0.00010958,2]
[333601775,1722274249414,-500.0,0.00010958,2]
[333601776,1722274249424,-116.25669602,0.00010958,2]
[333601777,1722274249436,-383.74330398,0.00010958,2]
[333601778,1722274249446,-113.04269602,0.00010958,2]
[333601779,1722274249551,-386.95730398,0.00010958,2]
[333601780,1722274249563,-500.0,0.00010958,2]
[333601781,1722274249573,-500.0,0.00010958,2]
[333601782,1722274249583,-500.0,0.00010958,2]
[333601783,1722274249595,-153.8,0.00010958,2]
[333601784,1722274249605,-408.23299672,0.00010958,2]
[333601785,1722274249618,-91.76700328,0.00010958,2]
[333601786,1722274249628,-500.0,0.00010958,2]
[333601787,1722274249639,-500.0,0.00010958,2]
[333601788,1722274249655,-513.10183639,0.00010958,2]
[333601789,1722274249666,-49.31483231,0.00010958,2]
[333601790,1722274249678,-450.68516769,0.00010958,2]
[333601791,1722274249688,-296.72181033,0.00010958,2]
[333601792,1722274249700,-203.27818967,0.00010958,2]
[333601793,1722274249710,-301.86181033,0.00010958,2]
[333601794,1722274249723,-198.13818967,0.00010958,2]
[333601795,1722274249734,-93.92581033,0.00010958,2]
[333601796,1722274249940,-762.776,0.0001093,2]
[333601797,1722274249951,-406.07418967,0.00010958,2]
[333601798,1722274249960,-500.0,0.00010958,2]
[333601799,1722274249971,-500.0,0.00010958,2]
[333601800,1722274249980,-500.0,0.00010958,2]
[333601801,1722274249990,-500.0,0.00010958,2]
[333601802,1722274249999,-525.70897196,0.00010958,2]
[333601803,1722274250011,-53.60102804,0.00010958,2]
[333601804,1722274250020,-500.0,0.00010958,2]
[333601805,1722274250029,-302.6082362,0.00010958,2]
[333601806,1722274250046,-197.3917638,0.00010958,2]
[333601807,1722274250055,-500.0,0.00010958,2]
[333601808,1722274250064,-167.41845156,0.00010958,2]
[333601809,1722274250074,-598.13,0.00010958,2]
[333601810,1722274250083,-175.81825809,0.00010958,2]
[333601811,1722274250095,-324.18174191,0.00010958,2]
[333601812,1722274250105,-500.0,0.00010958,2]
[333601813,1722274250114,-48.84090352,0.00010958,2]
[333601814,1722274250126,-451.15909648,0.00010958,2]
[333601815,1722274250135,-461.18705444,0.00010958,2]
[333601817,1722274270892,163.16,0.0001337,30]
[333602010,1722274406274,500.0,0.0002608,120]
[333602013,1722274416596,1000.0,0.00024932,120]
[333602066,1722274436228,10000.0,0.00027,120]
[333602071,1722274646546,7000.0,0.00027,120]
[333602090,1722274753925,-512.99,8.219e-05,2]
[333602091,1722274753948,-2947.3771,9.9e-05,2]
[333602092,1722274753971,-1000.0,9.955e-05,2]
[333602093,1722274753992,-3000.0,0.0001,3]
[333602094,1722274754014,-1250.0,0.0001,2]
[333602095,1722274754036,-150.0,0.00010278,2]
[333602096,1722274754058,-150.0,0.000103,2]
[333602097,1722274754082,-150.0,0.000103,2]
[333602098,1722274754104,-150.0,0.000103,2]
[333602099,1722274754130,-150.0,0.000103,2]
[333602100,1722274754152,-300.0,0.000103,2]
[333602101,1722274754173,-302.47,0.000103,2]
[333602102,1722274754195,-512.99,0.00010469,2]
[333602103,1722274754217,-716.501309,0.00010492,2]
[333602104,1722274754240,-3191.967483,0.00010492,2]
[333602105,1722274754261,-163.983566,0.00010492,2]
[333602106,1722274754282,-181.117558,0.00010492,2]
[333602107,1722274754302,-2149.503927,0.00010492,2]
[333602108,1722274754328,-150.0,0.00010499,2]
[333602109,1722274754350,-150.0,0.000105,2]
[333602110,1722274754373,-150.0,0.000105,2]
[333602111,1722274754394,-12804.49110925,0.000105,2]
[333602112,1722274754605,-150.0,0.000105,2]
[333602113,1722274754626,-150.0,0.000105,2]
[333602114,1722274754647,-716.501309,0.00010623,2]
[333602115,1722274754669,-3191.967483,0.00010623,2]
[333602116,1722274754690,-2149.503927,0.00010623,2]
[333602117,1722274754714,-163.983566,0.00010667,2]
[333602118,1722274754737,-500.0,0.00010753,2]
[333602119,1722274754759,-716.501309,0.00010754,2]
[333602120,1722274754782,-2028.15035375,0.00010754,2]
[333602137,1722274773274,163.16,0.0001337,30]
[333602174,1722275118800,150.96988889,6.124e-05,2]
[333602175,1722275118827,144.95889984,6.124e-05,2]
[333602179,1722275198182,150.0,6.124e-05,2]
[333602180,1722275198203,150.0,6.124e-05,2]
[333602181,1722275198223,150.0,6.124e-05,2]
[333602182,1722275198244,150.0,6.124e-05,2]
[333602183,1722275198263,150.0,6.124e-05,2]
[333602184,1722275198283,150.0,6.124e-05,2]
[333602185,1722275198303,150.0,6.124e-05,2]
[333602186,1722275198323,150.0,6.124e-05,2]
[333602187,1722275198345,150.0,6.124e-05,2]
[333602188,1722275198366,150.0,6.124e-05,2]
[333602189,1722275198386,150.0,6.124e-05,2]
[333602190,1722275198406,150.0,6.124e-05,2]
[333602191,1722275198429,150.0,6.124e-05,2]
[333602192,1722275198449,150.0,6.124e-05,2]
[333602193,1722275198470,150.0,6.124e-05,2]
[333602194,1722275198491,7012.00526818,6.124e-05,2]
[333602195,1722275202382,1222.54442824,6.124e-05,2]
[333602196,1722275217909,150.0,6.124e-05,2]
[333602197,1722275217931,150.0,6.124e-05,2]
[333602198,1722275217951,150.0,6.124e-05,2]
[333602199,1722275217970,150.0,6.124e-05,2]
[333602200,1722275217991,150.0,6.124e-05,2]
[333602201,1722275218012,47.63484705,6.124e-05,2]
[333602203,1722275230488,4261.84831126,6.124e-05,2]
[333602204,1722275236758,150.0,6.124e-05,2]
[333602205,1722275236778,150.0,6.124e-05,2]
[333602206,1722275236799,150.0,6.124e-05,2]
[333602207,1722275236819,150.0,6.124e-05,2]
[333602208,1722275236843,150.0,6.124e-05,2]
[333602209,1722275236863,150.0,6.124e-05,2]
[333602210,1722275236884,150.0,6.124e-05,2]
[333602211,1722275236905,150.0,6.124e-05,2]
[333602212,1722275236928,150.0,6.124e-05,2]
[333602213,1722275236950,150.0,6.124e-05,2]
[333602214,1722275236969,150.0,6.124e-05,2]
[333602215,1722275236990,150.0,6.124e-05,2]
[333602216,1722275237011,150.0,6.124e-05,2]
[333602217,1722275237031,150.0,6.124e-05,2]
[333602218,1722275237051,150.0,6.124e-05,2]
[333602219,1722275237071,150.0,6.124e-05,2]
[333602220,1722275237091,150.0,6.124e-05,2]
[333602221,1722275237111,150.0,6.124e-05,2]
[333602222,1722275237133,150.0,6.124e-05,2]
[333602223,1722275237154,106825.619316,6.124e-05,2]
[333602224,1722275242225,188.68526406,6.124e-05,2]
[333602225,1722275242245,150.0,6.124e-05,2]
[333602226,1722275242265,150.0,6.124e-05,2]
[333602227,1722275242284,150.0,6.124e-05,2]
[333602228,1722275242304,150.0,6.124e-05,2]
[333602229,1722275242323,150.0,6.124e-05,2]
[333602230,1722275242344,150.0,6.124e-05,2]
[333602231,1722275242364,150.0,6.124e-05,2]